[Event "Czech Open-Rapid 2022"]
[Site "Pardubice"]
[Date "2022.07.20"]
[Round "2.9"]
[White "Vykouk, Jan"]
[Black "Kovalskyi, Roman"]
[Result "1-0"]
[ECO "B35"]
[WhiteElo "2476"]
[BlackElo "2056"]
[Annotator "TA"]
[PlyCount "103"]
[EventDate "2022.07.20"]
[EventType "swiss"]
[EventCountry "CZE"]
[SourceTitle "playchess.com"]
[Source "ChessBase"]
[SourceQuality "1"]
[TimeControl "1200+10"]

{[%evp 25,102,0,0,3,10,13,0,0,0,0,17,-3,0,-39,-4,-4,-4,-37,-37,-42,0,0,0,0,0,-72,0,-15,0,0,0,0,0,-68,-79,-72,-58,-212,-116,-142,-136,-122,-118,-121,-127,-154,-124,-182,-158,-141,-56,-127,-113,-113,-110,-117,-110,-145,0,-2,201,160,919,889,1158,310,871,811,29975,230,230,230,229,229,223,208,29998,29999,29999]} 1. e4 {[%emt 0:00:02]} c5 {[%emt 0:00:01]} 2. Nf3 {[%emt 0:00:01][%cal Bg1f3,Bf3d4,Bd4f5][%mdl 32]} g6 {[%emt 0:00:01]} 3. d4 {[%emt 0:00:08]} cxd4 {[%emt 0:00:00]} 4. Nxd4 {[%emt 0:00:02]} Nc6 {[%emt 0:00:01]} 5. Nc3 {[%emt 0:00:02]} Bg7 {[%emt 0:00:02]} 6. Be3 {[%emt 0:00:02]} Nf6 {[%emt 0:00:02]} 7. Bc4 {[%emt 0:00:01]} d6 {[%emt 0:00:01]} 8. f3 {[%emt 0:00:03]} Qb6 {[%emt 0:00:02]} 9. Nf5 {[%emt 0:00:05]} Qxb2 {[%emt 0:00:01]} 10. Nxg7+ {[%emt 0:00:01]} Kf8 {[%emt 0:00:01]} 11. Nd5 {[%emt 0:00:17]} Nxd5 {[%emt 0:00:02]} 12. Bxd5 {[%emt 0:00:02]} Kxg7 {[%emt 0:00:02]} 13. Kf2 {[%emt 0:00:02]} Qc3 {[%emt 0:00:11]} 14. Rb1 {[%emt 0:00:01] [#] B75: Sicilian Dragon: Yugoslav Attack, Miscellaneous.} Re8 $146 {[%emt 0:00:01]} ({Predecessor:} 14... Qa5 15. h4 h5 16. g4 hxg4 17. fxg4 Ne5 18. g5 Bg4 19. Qd4 Rac8 20. Rxb7 e6 21. Rxa7 Rxc2+ {½-½ (28) Vachier Lagrave,M (2730)-Savchenko,B (2638) Moscow 2010}) 15. Rb3 {[%emt 0:00:09]} Qa5 {[%emt 0:00:01]} 16. h4 {[%emt 0:00:15] The position is equal.} h5 $1 {[%emt 0:00:01]} 17. Qd3 {[%emt 0:00:39]} f6 {[%emt 0:01:00]} 18. f4 {[%mdl 1024] White has compensation.} Qc7 19. Rd1 {[%emt 0:03:41]} Bg4 {[%emt 0:05:10]} (19... Bd7 $5 {[%cal Ra8c8]}) 20. Rdb1 {[%emt 0:00:02]} Rab8 {[%emt 0:00:16]} 21. f5 {[%emt 0:04:45]} Ne5 {[%emt 0:02:02]} 22. Qd2 {[%emt 0:01:02][%cal Rb3b7]} b6 {[%emt 0:00:55]} 23. Rc3 {[%emt 0:00:14]} Qd7 {[%emt 0:00:37]} 24. Be6 {[%emt 0:00:29]} Qb7 {[%emt 0:02:13]} 25. Qd4 {[%emt 0:02:18] [#]} (25. Bd5 $11 {keeps the balance.} Qa6 26. Be6) 25... Nd7 {[%emt 0:03:04]} (25... gxf5 26. exf5 Rec8 27. Qf4 $11) (25... Rec8 $1 $17 {...Rxc3 is the strong threat.} 26. Rbb3 Rc5) 26. Bd5 $1 $11 {[%emt 0:02:43] This bishop pair is nice.} Qa6 {[%emt 0:00:01]} 27. Rc7 $1 {[%emt 0:00:16]} (27. Bc4 Qa5 28. Bb5 (28. Rb5 Qa4 $15) 28... Nc5 $17) 27... Qe2+ {[%emt 0:03:17]} 28. Kg1 {[%emt 0:00:02] Chess con chili.} Ne5 {[%emt 0:00:01] Strongly threatening ...Rbc8.} 29. Bf2 {[%emt 0:02:31]} ({White should try} 29. Qc3 $11) 29... Rbc8 $1 $15 {[%emt 0:01:23][%cal Bb8c8,Bc8c2,Bc2d2][%mdl 32]} 30. Rxa7 {[%emt 0:00:36]} Rxc2 {[%emt 0:00:51] Hoping for ...Nd3.} 31. Rf1 $2 {[%emt 0:01:10]} (31. Re1 $15 Qxf2+ 32. Qxf2 Rxf2 33. Kxf2 Nd3+ 34. Kf1 Nxe1 35. Kxe1) 31... Bh3 {[%emt 0:01:16]} 32. Ra3 {[%emt 0:00:34]} Rd2 $1 $36 {[%emt 0:02:08][%mdl 2048] Black is in control.} 33. Qe3 {[%emt 0:01:32]} Qxe3 {[%emt 0:00:21]} 34. Rxe3 {[%emt 0:00:02]} Bg4 {[%emt 0:00:05]} 35. Be6 {[%emt 0:00:19]} Nd3 {[%emt 0:00:28]} 36. Bg3 {[%emt 0:00:19]} (36. Be1 $17 Rd1 37. Bc4) 36... Ra8 {[%emt 0:00:13]} 37. Rb1 {[%emt 0:00:20]} Rb8 (37... Ra7 $17 38. Be1 Nxe1 39. Rexe1 Ra3) 38. a4 {[%emt 0:01:08]} (38. Be1 $15 Nxe1 39. Rexe1) 38... Nc5 {[%emt 0:00:23][%csl LRa4,LRe6]} 39. a5 {[%emt 0:00:01]} b5 {[%emt 0:00:01]} 40. Bc4 {[%emt 0:00:16]} b4 {[%emt 0:00:06]} 41. a6 {[%emt 0:00:02]} Ra8 {[%emt 0:00:17]} (41... gxf5 $6 42. exf5 Kf8 43. Ra3 Nxa6 44. Rxa6 $11) ({Black should play} 41... Rc2 $17 42. Bb3 Re2 43. Rxe2 Bxe2) 42. Rxb4 $11 {[%emt 0:00:09]} Nxa6 $2 {[%emt 0:00:08]} (42... Rd1+ $11 {and Black stays safe.} 43. Kh2 Rd4) 43. Rb7 $18 {[%emt 0:00:10]} Nc5 $2 {[%emt 0:00:22]} (43... Kf8 $16) 44. Rxe7+ {[%emt 0:00:03]} Kh6 45. Rf7 $2 {[%emt 0:00:22]} (45. Bf4+ g5 46. Ra3 $3 {[%mdl 512]} Rd1+ 47. Kh2) 45... Ra1+ $2 {[%emt 0:00:15]} (45... Rd4) 46. Kh2 {[%emt 0:00:01]} gxf5 {[%emt 0:00:11]} 47. Rxf6+ $2 {[%emt 0:00:10]} (47. exf5 {mates} Bxf5 48. Rxf6+ Bg6 49. Re7 Rf1 50. Bxf1 Rd4 51. Rf8 Be8 52. Rfxe8) 47... Kg7 {[%emt 0:00:02]} 48. Rf7+ {[%emt 0:00:08]} ({Not} 48. Rxd6 Rxd6 49. Bxd6 Rc1 50. Be5+ (50. Bxc5 Rxc4 51. Be7 Rxe4 $11) 50... Kf8 51. Bd6+ Kg7 52. Be5+ (52. Bxc5 Rxc4 53. Ba7 Ra4 $11) 52... Kf8 $14) 48... Kg6 {[%emt 0:00:05]} 49. exf5+ {[%emt 0:00:13]} Bxf5 {[%emt 0:00:06] [#]} 50. Ree7 $1 {[%emt 0:00:39] Intending Rg7+ and mate.} Be4 $2 {[%emt 0:00:31]} (50... Rd4 $18 51. Be2 Be6) 51. Rg7+ {[%emt 0:00:08]} Kf5 {[%emt 0:00:01]} 52. Ref7# {[%emt 0:00:04] Weighted Error Value: White=0.50/Black=0.66} 1-0

[Event "Czech Open-Rapid 2022"]
[Site "Pardubice"]
[Date "2022.07.20"]
[Round "2.10"]
[White "Pacl, Vaclav"]
[Black "Luch, Michal"]
[Result "0-1"]
[ECO "A13"]
[WhiteElo "2036"]
[BlackElo "2375"]
[Annotator "TA"]
[PlyCount "68"]
[EventDate "2022.07.20"]
[EventType "swiss"]
[EventCountry "CZE"]
[SourceTitle "playchess.com"]
[Source "ChessBase"]
[SourceQuality "1"]
[TimeControl "1200+10"]

{[%evp 9,68,32,33,34,38,38,40,42,43,45,48,47,47,8,18,0,0,-59,-37,-37,-42,-104,-91,-142,-140,-156,-142,-138,-141,-136,-140,-145,-163,-136,-132,-232,-174,-441,-437,-741,-700,-720,-723,-813,-813,-855,-836,-2038,-1918,-5900,-3772,-12835,-12835,-12836,-12835,-12836,-12836,-5381,-1689,-5912,-679]} 1. c4 {[%emt 0:00:07]} e6 {[%emt 0:00:02]} 2. Nf3 {[%emt 0:00:03]} d5 {[%emt 0:00:06]} 3. e3 {[%emt 0:00:03]} Nf6 {[%emt 0:00:39]} 4. b3 {[%emt 0:00:06]} a5 {[%emt 0:00:33]} 5. Nc3 {[%emt 0:00:25]} Be7 {[%emt 0:00:23]} 6. d4 {[%emt 0:00:15] A13: English Opening: 1...e6.} O-O {[%emt 0:00:13]} 7. Bd3 {[%emt 0:00:02]} b6 {[%emt 0:00:14]} 8. O-O {[%emt 0:00:38] White is slightly better.} Bb7 {[%emt 0:00:06] [#]} 9. Qc2 $146 {[%emt 0:00:15]} ({Predecessor:} 9. Bb2 Nbd7 10. Rc1 Rc8 11. cxd5 exd5 12. Qe2 Re8 13. Ba6 Bxa6 14. Qxa6 c6 15. Qd3 Bd6 {½-½ (15) Dizdarevic,E (2492)-Drasko,M (2504) Sarajevo 2006}) 9... c5 {[%emt 0:03:13]} 10. cxd5 {[%emt 0:00:48]} exd5 {[%emt 0:00:08]} 11. Nb5 {[%emt 0:00:06]} Nc6 {[%emt 0:01:07]} 12. a3 {[%emt 0:01:03] Inhibits Nb4.} a4 {[%emt 0:00:21]} 13. dxc5 {[%emt 0:03:31]} ({White should play} 13. bxa4 $11 c4 14. Be2) 13... axb3 $15 {[%emt 0:00:13]} 14. Qxb3 {[%emt 0:00:02]} bxc5 {[%emt 0:00:05][%cal Bb6c5,Bc5c4][%mdl 32] [#] aiming for ...c4.} 15. Bf5 {[%emt 0:00:35] White is on the road to losing.} (15. Qd1 $15) 15... g6 $17 {[%emt 0:01:22]} 16. Bh3 {[%emt 0:00:02]} (16. Bc2 $142) 16... Ba6 {[%emt 0:04:29]} 17. a4 {[%emt 0:01:08]} c4 $36 {[%emt 0:00:58][%mdl 2048] Black is in control.} 18. Qb1 {[%emt 0:00:19]} Ne4 {[%emt 0:00:29]} 19. Bb2 {[%emt 0:00:23]} Rb8 {[%emt 0:00:34][%cal Ba8b8,Bb8b7,Bb7b5,Bb5b2][%mdl 32]} 20. Ne5 {[%emt 0:03:39]} Nxe5 {[%emt 0:04:10]} 21. Bxe5 {[%emt 0:00:02]} Rb7 {[%emt 0:00:10] Against Bc7. ...Nd2 is the strong threat.} 22. Rd1 {[%emt 0:00:33] Inhibits Nd2.} (22. Qb2 $17) 22... Bf6 $19 {[%emt 0:00:02]} 23. Bxf6 {[%emt 0:03:37]} (23. Bd4) 23... Qxf6 {[%emt 0:00:01] Black is clearly winning.} 24. Qc2 {[%emt 0:00:05]} (24. f3 $142 Bxb5 25. fxe4) 24... Bxb5 {[%emt 0:00:08]} 25. axb5 {[%emt 0:00:01]} Rxb5 {[%emt 0:00:02] [#] Strongly threatening ...Rb2.} 26. f3 {[%emt 0:01:26]} Rb2 {[%emt 0:00:45]} 27. Qc1 {[%emt 0:00:02]} Nf2 {[%emt 0:00:37]} 28. Rd4 {[%emt 0:01:08]} Nxh3+ {[%emt 0:00:13]} 29. gxh3 {[%emt 0:00:01]} Rfb8 {[%emt 0:00:31]} 30. f4 {[%emt 0:00:10]} Qf5 {[%emt 0:00:09]} 31. Ra8 {[%emt 0:00:23]} Rxa8 {[%emt 0:00:33]} 32. Qxb2 {[%emt 0:00:04]} Qxh3 {[%emt 0:00:02]} 33. Qc3 {[%emt 0:01:12]} Qf3 {[%emt 0:00:44]} (33... Qg4+ $142 34. Kf1 Rb8) 34. Rd2 {[%emt 0:01:05]} Re8 {[%emt 0:00:06] Weighted Error Value: White=1.12/Black=0.16 (very precise)} (34... Rb8 $142 35. Qc2 Qxe3+ 36. Kg2 d4) 0-1

[Event "Czech Open-Rapid 2022"]
[Site "Pardubice"]
[Date "2022.07.20"]
[Round "2.11"]
[White "Lalic, Bogdan"]
[Black "Kokes, Bohuslav"]
[Result "1-0"]
[ECO "A44"]
[WhiteElo "2412"]
[BlackElo "1909"]
[Annotator "TA"]
[PlyCount "59"]
[EventDate "2022.07.20"]
[EventType "swiss"]
[EventCountry "CZE"]
[SourceTitle "playchess.com"]
[Source "ChessBase"]
[SourceQuality "1"]
[TimeControl "1200+10"]

{[%evp 11,59,81,72,72,85,53,56,55,70,85,81,64,64,70,73,33,74,53,99,55,158,150,158,159,172,177,247,175,240,243,240,253,279,298,320,304,300,276,298,172,470,464,500,510,779,418,650,649,758,737]} 1. d4 {[%emt 0:00:01]} c5 {[%emt 0:00:20]} 2. d5 {[%emt 0:00:07]} e5 {[%emt 0:00:20]} 3. e4 {[%emt 0:00:12]} d6 {[%emt 0:00:06]} 4. c4 {[%emt 0:00:13]} Be7 {[%emt 0:00:07]} 5. Nc3 {[%emt 0:01:37]} Bg5 {[%emt 0:00:16]} 6. Bxg5 {[%emt 0:00:12]} Qxg5 {[%emt 0:00:09]} 7. h4 {[%emt 0:00:05] A44: Semi-Benoni.} Qe7 {[%emt 0:00:41]} 8. g3 {[%emt 0:00:19]} Nh6 {[%emt 0:00:30]} 9. Bh3 {[%emt 0:00:11] White is slightly better.} Nd7 {[%emt 0:01:27]} 10. Nf3 {[%emt 0:02:19]} O-O {[%emt 0:01:00] [#]} 11. Ng5 $146 {[%emt 0:00:21]} ({Predecessor:} 11. g4 f6 12. g5 Nf7 13. Qd2 Nb6 14. b3 fxg5 15. hxg5 Nh8 16. Nh4 g6 17. O-O-O Bxh3 18. Rxh3 {½-½ (31) Michenka,J (2375)-Shtyrenkov,V (2455) Zlin 1995}) 11... Kh8 {[%emt 0:01:06]} 12. Qe2 {[%emt 0:00:32]} Ng8 {[%emt 0:00:20]} 13. f4 {[%emt 0:00:35][%cal Bf2f4,Bf4f5][%mdl 32]} h6 {[%emt 0:00:46]} 14. O-O-O {[%emt 0:00:46][%cal Od1g1]} Ngf6 {[%emt 0:01:39] White stays focused until the end.} (14... a6 $14 {deserves consideration.}) 15. Nf3 {[%emt 0:01:53] White is much more active. The black rooks are badly placed.} Re8 {[%emt 0:00:33] [#]} ({Black should try} 15... Nh5 $14) 16. f5 $1 $16 {[%emt 0:00:15]} a6 {[%emt 0:00:36]} 17. g4 {[%emt 0:00:10][%cal Bg3g4,Bg4g5][%mdl 32]} Nh7 {[%emt 0:01:39]} 18. g5 {[%emt 0:01:23]} h5 {[%emt 0:01:37]} (18... hxg5 $2 19. hxg5 Rd8 20. g6 $18) (18... b5 $142 19. f6 (19. cxb5 axb5 20. f6 gxf6 $16) 19... gxf6) 19. g6 {[%emt 0:01:28]} Nhf6 {[%emt 0:03:11]} (19... fxg6 $142 20. fxg6 Nhf6) 20. gxf7 $18 {[%emt 0:00:09]} Qxf7 {[%emt 0:00:25]} 21. Ng5 {[%emt 0:00:03]} Qe7 {[%emt 0:00:07]} 22. Rhg1 {[%emt 0:00:13]} Nf8 {[%emt 0:00:07]} 23. Rg3 {[%emt 0:00:08]} N8h7 {[%emt 0:00:49]} 24. Rdg1 {[%emt 0:00:18]} Rg8 {[%emt 0:00:29]} 25. Bg2 {[%emt 0:00:39]} (25. a4 $142) 25... b5 $2 {[%emt 0:01:19]} (25... g6) 26. Bf3 {[%emt 0:00:09]} Qe8 {[%emt 0:00:21]} 27. cxb5 {[%emt 0:00:20]} axb5 {[%emt 0:00:05]} (27... Nf8 $142 28. b6 Rb8) 28. Qxb5 {[%emt 0:00:50]} Bd7 {[%emt 0:00:49]} (28... Qe7 $142 29. Ne6 Bxe6) 29. Qb6 {[%emt 0:00:12]} Qe7 {[%emt 0:00:28] [#]} 30. Qxd6 $3 {[%emt 0:00:17][%mdl 512] Weighted Error Value: White=0.23 (precise) /Black=0.50} 1-0

[Event "Czech Open-Rapid 2022"]
[Site "Pardubice"]
[Date "2022.07.20"]
[Round "2.12"]
[White "Postl, Petr"]
[Black "Neuman, Petr"]
[Result "0-1"]
[ECO "B23"]
[WhiteElo "1900"]
[BlackElo "2378"]
[Annotator "TA"]
[PlyCount "62"]
[EventDate "2022.07.20"]
[EventType "swiss"]
[EventCountry "CZE"]
[SourceTitle "playchess.com"]
[Source "ChessBase"]
[SourceQuality "1"]
[TimeControl "1200+10"]

{[%evp 10,62,0,-35,-5,-12,-11,-29,-18,-39,-9,-17,-10,-12,0,5,5,5,3,0,29,19,53,0,0,0,0,0,0,0,0,-170,-160,-164,-74,-199,-174,-174,-172,-500,-491,-563,-566,-641,-473,-473,-473,-473,-473,-466,-466,-466,-449,-427,-377]} 1. e4 {[%emt 0:00:02]} c5 {[%emt 0:00:01]} 2. Nc3 {[%emt 0:00:01]} d6 {[%emt 0:00:05]} 3. f4 {[%emt 0:00:03]} g6 {[%emt 0:00:03]} 4. Nf3 {[%emt 0:00:03]} Bg7 {[%emt 0:00:01]} 5. d3 {[%emt 0:00:03]} Nc6 {[%emt 0:00:02]} 6. Be3 {[%emt 0:00:04]} Nd4 {[%emt 0:00:07] B23: Closed Sicilian: Lines without g3.} 7. Be2 {[%emt 0:00:30]} e6 {[%emt 0:00:04]} 8. Qd2 {[%emt 0:00:05]} Ne7 {[%emt 0:00:04][%cal Bg8e7,Be7f5,Bf5e3][%mdl 32] Black has an edge.} 9. O-O-O {[%emt 0:00:14]} Qa5 {[%emt 0:00:18] [#]} 10. e5 $146 {[%emt 0:01:06]} ({Predecessor:} 10. a3 b5 11. Bxd4 cxd4 12. Na2 Qb6 13. e5 a5 14. c3 dxc3 15. Qxc3 Bd7 16. Qd2 {½-½ (33) Helm,J (1654)-Lais,T (1809) Zirndorf 2008}) 10... Nef5 {[%emt 0:00:29]} 11. g4 {[%emt 0:02:59]} Nxf3 {[%emt 0:00:50]} 12. Bxf3 {[%emt 0:00:02]} Nxe3 {[%emt 0:00:04]} 13. Qxe3 {[%emt 0:00:09]} d5 {[%emt 0:00:05] Inhibits Ne4.} 14. d4 {[%emt 0:00:10]} O-O {[%emt 0:01:05]} 15. h4 {[%emt 0:00:06]} b5 {[%emt 0:00:19]} 16. h5 {[%emt 0:01:17]} (16. f5 $14 b4 17. Nxd5 exd5 18. f6) 16... b4 $11 {[%emt 0:00:02] [#] White must now prevent ...cxd4.} 17. Nxd5 {[%emt 0:02:00]} exd5 {[%emt 0:00:10]} 18. Bxd5 {[%emt 0:00:02] Strongly threatening hxg6.} Be6 {[%emt 0:00:37][%cal Bc8e6,Be6g4,Bg4f5][%mdl 32]} 19. Bxa8 {[%emt 0:00:17]} Rxa8 {[%emt 0:00:02]} 20. d5 $2 {[%emt 0:00:01] [#]} (20. hxg6 $11 {and White stays safe.} fxg6 21. Qh3 (21. dxc5 $2 Qxa2 22. Qf3 Rf8 $19) (21. Qf3 Rd8 $11)) 20... Bxg4 $19 {[%emt 0:00:07]} 21. hxg6 {[%emt 0:00:31]} fxg6 {[%emt 0:00:12]} (21... hxg6 $19 {is more deadly.} 22. Kb1 c4) 22. Rdg1 {[%emt 0:01:17] Now White is beyond hope.} (22. Kb1 $17) 22... Bf5 {[%emt 0:00:01] And now ...c4 would win. This bishop pair is nice.} 23. Kb1 {[%emt 0:00:01]} c4 {[%emt 0:00:08]} 24. Rg5 $2 {[%emt 0:00:25]} (24. d6) 24... Qxd5 {[%emt 0:00:26] Black is clearly winning.} 25. Rhg1 {[%emt 0:00:36]} Rf8 {[%emt 0:00:26]} 26. Kc1 {[%emt 0:02:15]} b3 {[%emt 0:00:29]} 27. axb3 {[%emt 0:00:08]} cxb3 {[%emt 0:00:02]} 28. Qxb3 {[%emt 0:00:11]} Qxb3 {[%emt 0:00:04]} 29. cxb3 {[%emt 0:00:01]} Bh6 {[%emt 0:00:11]} 30. Kd2 {[%emt 0:00:39]} Bxg5 {[%emt 0:00:02]} 31. fxg5 {[%emt 0:00:01]} Re8 {[%emt 0:00:11] Weighted Error Value: White=0.54/Black=0.20 (precise)} 0-1

[Event "Czech Open-Rapid 2022"]
[Site "Pardubice"]
[Date "2022.07.20"]
[Round "2.13"]
[White "Dobrowolski, Piotr"]
[Black "Svoboda, Petr"]
[Result "1-0"]
[ECO "C88"]
[WhiteElo "2423"]
[BlackElo "2088"]
[Annotator "TA"]
[PlyCount "67"]
[EventDate "2022.07.20"]
[EventType "swiss"]
[EventCountry "CZE"]
[SourceTitle "playchess.com"]
[Source "ChessBase"]
[SourceQuality "1"]
[TimeControl "1200+10"]

{[%evp 16,67,31,27,45,43,52,45,52,51,60,54,50,49,56,31,31,23,26,14,18,0,16,23,35,25,108,72,101,92,103,78,459,232,393,364,761,770,770,762,742,722,761,724,797,782,664,647,785,581,819,811,862,835]} 1. e4 {[%emt 0:00:13]} e5 {[%emt 0:00:09]} 2. Nf3 {[%emt 0:00:04]} Nc6 {[%emt 0:00:27]} 3. Bb5 {[%emt 0:00:04]} a6 {[%emt 0:00:22]} 4. Ba4 {[%emt 0:00:03]} Nf6 {[%emt 0:00:03]} 5. O-O {[%emt 0:00:09]} Be7 {[%emt 0:00:03]} 6. Re1 {[%emt 0:00:07]} b5 {[%emt 0:00:03]} 7. Bb3 {[%emt 0:00:03]} O-O {[%emt 0:00:35]} 8. a4 {[%emt 0:00:21]} Bb7 {[%emt 0:00:16]} 9. d3 {[%emt 0:00:09]} h6 {[%emt 0:00:42] C88: Closed Ruy Lopez: Anti-Marshall Systems.} 10. Nc3 {[%emt 0:01:09][%cal Bb1c3,Bc3e2,Be2g3,Bg3f5][%mdl 32]} b4 {[%emt 0:00:26]} 11. Ne2 {[%emt 0:00:52]} d6 {[%emt 0:00:19] White is slightly better.} 12. a5 {[%emt 0:00:13]} Re8 {[%emt 0:00:19]} 13. Ng3 {[%emt 0:00:11]} Bf8 {[%emt 0:00:34]} 14. Bd2 {[%emt 0:02:32]} Rb8 {[%emt 0:02:14]} 15. Nf5 {[%emt 0:00:48] [#]} Bc8 $146 {[%emt 0:00:22]} ({Predecessor:} 15... d5 16. Ba4 dxe4 17. dxe4 Nd7 18. Be3 Nc5 19. Bxc5 Bxc5 20. Qd5 Qxd5 21. exd5 Na7 22. Bxe8 Rxe8 23. Rxe5 Rxe5 24. Nxe5 Bxd5 {1-0 (34) Rohde,M (2445)-Lief,A (2250) Somerset 1986}) 16. N3h4 {[%emt 0:00:40]} Be6 {[%emt 0:00:28]} 17. Ba4 {[%emt 0:00:02]} Bd7 {[%emt 0:01:07]} 18. h3 {[%emt 0:01:40]} Kh7 {[%emt 0:00:22]} 19. c3 {[%emt 0:00:44]} g6 {[%emt 0:00:51]} 20. Ne3 {[%emt 0:00:26]} Nxe4 {[%emt 0:01:17]} 21. Nxg6 {[%emt 0:00:02]} (21. dxe4 {is interesting.} Qxh4 22. cxb4 Re7 23. Nd5) 21... fxg6 {[%emt 0:01:03]} 22. dxe4 {[%emt 0:00:02]} bxc3 {[%emt 0:00:53]} 23. Bxc3 {[%emt 0:00:07]} Qg5 $2 {[%emt 0:00:31][%mdl 8192] [#] Black cannot hold the game after this.} (23... Na7 $16 {is more resistant.}) 24. Rc1 {[%emt 0:00:26]} (24. Qd5 $142) 24... Re7 $2 {[%emt 0:01:55]} (24... Qd8 25. Nd5 (25. Qd5 Ne7 $16) 25... Rc8) 25. Bd2 {[%emt 0:02:36]} Nb4 {[%emt 0:05:42]} (25... Nd4) 26. Nd5 $18 {[%emt 0:00:47] White is clearly winning.} Bxa4 {[%emt 0:00:19]} 27. Bxg5 {[%emt 0:00:09]} Bxd1 {[%emt 0:00:18]} 28. Bxe7 {[%emt 0:00:07]} Nxd5 {[%emt 0:01:36]} 29. exd5 {[%emt 0:00:07]} Bxe7 {[%emt 0:00:21]} 30. Rxc7 {[%emt 0:00:05]} Kg8 {[%emt 0:00:57]} 31. Rxe7 {[%emt 0:00:21]} Bb3 {[%emt 0:00:01]} 32. Re6 {[%emt 0:00:10]} Bxd5 {[%emt 0:00:07]} 33. Rxg6+ {[%emt 0:00:06]} Kf7 {[%emt 0:00:06]} 34. Rxd6 {[%emt 0:00:03] Weighted Error Value: White=0.36/Black=0.63} 1-0

[Event "Czech Open-Rapid 2022"]
[Site "Pardubice"]
[Date "2022.07.20"]
[Round "2.14"]
[White "Chrz, Pavel"]
[Black "Rasik, Vitezslav"]
[Result "0-1"]
[ECO "E77"]
[WhiteElo "1986"]
[BlackElo "2419"]
[Annotator "TA"]
[PlyCount "36"]
[EventDate "2022.07.20"]
[EventType "swiss"]
[EventCountry "CZE"]
[SourceTitle "playchess.com"]
[Source "ChessBase"]
[SourceQuality "1"]
[TimeControl "1200+10"]

{[%evp 17,36,0,17,12,9,13,58,57,58,54,67,54,56,0,0,0,-6,-108,-114,-562,-535]} 1. e4 {[%emt 0:00:12]} d6 {[%emt 0:00:03]} 2. d4 {[%emt 0:00:14]} g6 {[%emt 0:00:04]} 3. c4 {[%emt 0:01:00]} Bg7 {[%emt 0:00:10]} 4. Nc3 {[%emt 0:00:03]} Nf6 {[%emt 0:00:04]} 5. f4 {[%emt 0:00:14]} O-O {[%emt 0:00:16]} 6. Nf3 {[%emt 0:00:11]} c5 {[%emt 0:00:19]} 7. d5 {[%emt 0:00:01]} e6 {[%emt 0:00:18]} 8. Be2 {[%emt 0:00:06]} exd5 {[%emt 0:00:12]} 9. exd5 {[%emt 0:00:03]} Bg4 {[%emt 0:02:24]} 10. O-O {[%emt 0:00:05] E77: King's Indian: Four Pawns Attack: 6 Be2 incl 6...c5 7 d5 e6 8 Nf3, but not Benoni.} Na6 {[%emt 0:00:52]} 11. h3 {[%emt 0:01:42]} Bxf3 {[%emt 0:00:07]} 12. Bxf3 {[%emt 0:00:40][%cal Of4f5] White is slightly better.} Nc7 {[%emt 0:00:06] [#]} 13. f5 $146 {[%emt 0:00:32]} ({Predecessor:} 13. Qd3 a6 14. f5 Nd7 15. Bf4 Ne5 16. Bxe5 Bxe5 17. Rae1 Qh4 18. Rxe5 dxe5 19. d6 {1-0 (38) Kulcsar,T (2210)-Apatoczky,P (2193) Hungary 2000}) 13... a6 {[%emt 0:02:59]} 14. a4 $1 {[%emt 0:02:52] Inhibits b5.} Qd7 {[%emt 0:02:50]} 15. Bg5 {[%emt 0:02:03]} (15. Bg4 $14) 15... Qxf5 $11 {[%emt 0:01:04]} 16. Qd2 {[%emt 0:00:35]} Qe5 {[%emt 0:01:25]} 17. Ne2 {[%emt 0:08:25]} (17. Rae1 $11 {remains equal.} Qd4+ 18. Qxd4 cxd4 19. Ne2) 17... Ne4 $17 {[%emt 0:00:43]} 18. Qf4 {[%emt 0:01:07][%mdl 8192] [#]} Nxg5 {[%emt 0:00:05] Weighted Error Value: White=0.71/Black=0.08 (flawless)} 0-1